Workbook

Sheet Data
D1: ="ZIP Code Data for " & L1 -> ZIP Code Data for Example Zip Codes | K1: Report Name | L1: Example Zip Codes
B2: Your Entry | C2: Distance | D2: City | E2: State | F2: Occurences | G2: Population | H2: Population Estimate | I2: Business Annual Payroll ($1000) | J2: Business First Quarter Payroll ($1000) | K2: Median Age | L2: Male Population | M2: Female Population | N2: Median Age Female | O2: Median Age Male | P2: Households | Q2: Persons Per Household | R2: Income Per Household | S2: Number of Businesses | T2: Number of Employees | U2: Delivery Business | V2: Delivery Residential | W2: Delivery Total | X2: Median House Value | Y2: CBSA Population | Z2: CBSA Division Population | AA2: CBSA Name | AB2: CBSA Number | AC2: CBSA Type | AD2: City Alias Name | AE2: State Full Name | AF2: State FIPS | AG2: County Name | AH2: County FIPS | AI2: Latitude | AJ2: Longitude | AK2: Region | AL2: Division | AM2: Area Code | AN2: DayLight Savings | AO2: Land Area | AP2: Water Area | AQ2: Congressional District | AR2: Congressional Land Area | AS2: Asian Population | AT2: Black or African American Population | AU2: American Indian or Alaskan Native Population | AV2: Native Hawaiian or other Pacific Islander Population | AW2: White Population | AX2: Other Population | AY2: Growing Counties A | AZ2: Growing Counties B | BA2: Growth Increase Number | BB2: Growth Increase Percentage | BC2: Growth Rank
B3: 06830 | D3: GREENWICH | E3: CT | F3: 1 | G3: 24027 | H3: 25298 | I3: 2872620 | J3: 993221 | K3: 42.4 | L3: 11263 | M3: 12764 | N3: 44.1 | O3: 40.2 | P3: 9766 | Q3: 2.43 | R3: 107086 | S3: 1518 | T3: 20947 | U3: 1467 | V3: 10411 | W3: 11815 | X3: 1465100 | Y3: 916829 | Z3: 0 | AA3: Bridgeport-Stamford-Norwalk, CT | AB3: 14860 | AC3: Metro | AD3: GREENWICH | AE3: Connecticut | AF3: 9 | AG3: FAIRFIELD | AH3: 1 | AI3: 41.039806 | AJ3: -73.625848 | AK3: Northeast | AL3: New England | AM3: 203/475 | AN3: Y | AO3: 13.538 | AP3: 4.843 | AQ3: 4 | AR3: 460.73 | AS3: 1851 | AT3: 1048 | AU3: 107 | AV3: 23 | AW3: 20477 | AX3: 1116 | AY3: 0 | AZ3: 0 | BA3: 0 | BB3: 0 | BC3: 0
B4: 90210 | D4: BEVERLY HILLS | E4: CA | F4: 1 | G4: 21741 | H4: 23625 | I4: 2570383 | J4: 590989 | K4: 47.5 | L4: 10292 | M4: 11449 | N4: 47.1 | O4: 47.9 | P4: 8669 | Q4: 2.49 | R4: 149732 | S4: 2466 | T4: 37602 | U4: 1484 | V4: 9488 | W4: 10890 | X4: 2000000 | Y4: 0 | Z4: 9818605 | AA4: Los Angeles-Long Beach-Anaheim, CA | AB4: 31080 | AC4: Metro | AD4: BEVERLY HILLS | AE4: California | AF4: 6 | AG4: LOS ANGELES | AH4: 37 | AI4: 34.103131 | AJ4: -118.416253 | AK4: West | AL4: Pacific | AM4: 310/424 | AN4: Y | AO4: 10.126 | AP4: 0.061 | AQ4: 28|30|33 | AR4: 218.45|135.94|288.58 | AS4: 1966 | AT4: 471 | AU4: 80 | AV4: 55 | AW4: 19761 | AX4: 387 | AY4: 0 | AZ4: 0 | BA4: 0 | BB4: 0 | BC4: 0
B5: 78745 | D5: AUSTIN | E5: TX | F5: 1 | G5: 55614 | H5: 64722 | I5: 774523 | J5: 181060 | K5: 33.1 | L5: 27813 | M5: 27801 | N5: 34.1 | O5: 32.3 | P5: 24081 | Q5: 2.3 | R5: 60567 | S5: 1464 | T5: 21363 | U5: 1605 | V5: 28140 | W5: 35566 | X5: 229200 | Y5: 1716289 | Z5: 0 | AA5: Austin-Round Rock-Georgetown, TX | AB5: 12420 | AC5: Metro | AD5: AUSTIN | AE5: Texas | AF5: 48 | AG5: TRAVIS | AH5: 453 | AI5: 30.200659 | AJ5: -97.797109 | AK5: South | AL5: West South Central | AM5: 512 | AN5: Y | AO5: 13.351 | AP5: 0 | AQ5: 21|25|35 | AR5: 5920.89|7620.7|593.77 | AS5: 1582 | AT5: 3135 | AU5: 1146 | AV5: 105 | AW5: 42252 | AX5: 9643 | AY5: 1024272 | AZ5: 1063130 | BA5: 38858 | BB5: 3.8 | BC5: 28
B6: 90272 | D6: PACIFIC PALISADES | E6: CA | F6: 1 | G6: 22986 | H6: 23179 | I6: 298837 | J6: 61908 | K6: 47.3 | L6: 10952 | M6: 12034 | N6: 47.7 | O6: 46.8 | P6: 9212 | Q6: 2.49 | R6: 180962 | S6: 887 | T6: 6211 | U6: 516 | V6: 9309 | W6: 10702 | X6: 2000000 | Y6: 0 | Z6: 9818605 | AA6: Los Angeles-Long Beach-Anaheim, CA | AB6: 31080 | AC6: Metro | AD6: PACIFIC PALISADES | AE6: California | AF6: 6 | AG6: LOS ANGELES | AH6: 37 | AI6: 34.078345 | AJ6: -118.5475 | AK6: West | AL6: Pacific | AM6: 424 | AN6: Y | AO6: 22.832 | AP6: 0.55 | AQ6: 33 | AR6: 288.58 | AS6: 1692 | AT6: 288 | AU6: 115 | AV6: 41 | AW6: 21334 | AX6: 265 | AY6: 0 | AZ6: 0 | BA6: 0 | BB6: 0 | BC6: 0

Sheet Demographics
A1: ="Demographic Totals and Averages for " & Data!L1 -> Demographic Totals and Averages for Example Zip Codes
B2: Population | C2: =SUM(Data!G3:G100000) -> 124368 | D2: Delivery Business | E2: =SUM(Data!U3:U100000) -> 5072
B3: Population Estimate | C3: =SUM(Data!H3:H100000) -> 136824 | D3: Delivery Residential | E3: =SUM(Data!V3:V100000) -> 57348
B4: Business Annual Payroll ($1000) | C4: =SUM(Data!I3:I100000) -> 6516363 | D4: Delivery Total | E4: =SUM(Data!W4:W100000) -> 57158
B5: Business First Quarter ($1000) | C5: =SUM(Data!J3:J100000) -> 1827178 | D5: Median Housing Value | E5: =SUMPRODUCT(Data!$F$3:$F$100000,Data!$X$3:$X$100000*($W$3:$W$100000<>"0"))/SUMIF(Data!$X$3:$X$100000,"<>0",Data!$F$3:$F$100000) -> 1423575
B6: Median Age | C6: =SUMPRODUCT(Data!$F$3:$F$100000,Data!$K$3:$K$100000*($K$3:$K$100000<>"0"))/SUMIF(Data!$K$3:$K$100000,"<>0",Data!$F$3:$F$100000) -> 42.575 | D6: Income Per Household | E6: =SUMPRODUCT(Data!$F$3:$F$100000,Data!$R$3:$R$100000*($R$3:$R$100000<>"0"))/SUMIF(Data!$R$3:$R$100000,"<>0",Data!$F$3:$F$100000) -> 124586.75
B7: Median Age Female | C7: =SUMPRODUCT(Data!$F$3:$F$100000,Data!$N$3:$N$100000*($N$3:$N$100000<>"0"))/SUMIF(Data!$N$3:$N$100000,"<>0",Data!$F$3:$F$100000) -> 43.25 | D7: Number of Businesses | E7: =SUM(Data!S3:S1000000) -> 6335
B8: Median Age Male | C8: =SUMPRODUCT(Data!$F$3:$F$100000,Data!$O$3:$O$100000*($O$3:$O$100000<>"0"))/SUMIF(Data!$O$3:$O$100000,"<>0",Data!$F$3:$F$100000) -> 41.8 | D8: Number of Employees | E8: =SUM(Data!T3:T100000) -> 86123
B9: Households | C9: =SUM(Data!P3:P100000) -> 51728 | D9: Persons Per Household | E9: =SUMPRODUCT(Data!$F$3:$F$100000,Data!$Q$3:$Q$100000*($P$3:$P$100000<>"0"))/SUMIF(Data!$Q$3:$Q$100000,"<>0",Data!$F$3:$F$100000) -> 2.4275

Sheet Population
A1: ="Gender Information for " & Data!L1 -> Gender Information for Example Zip Codes
F2: Number | G2: Percent
E3: Male | F3: =SUM(Data!L3:L100000) -> 60320 | G3: =F3/(F$5+0.000001) -> 0.4850122218
E4: Female | F4: =SUM(Data!M3:M100000) -> 64048 | G4: =F4/(F$5+0.000001) -> 0.5149877782
E5: Total Population | F5: =SUM(F3,F4) -> 124368 | G5: 1

Sheet Race
A1: ="Race Information for "& Data!L1 -> Race Information for Example Zip Codes
D2: Number | E2: Percent
C3: Asian | D3: =SUM(Data!AS$3:AS$100000) -> 7091 | E3: =D3/($D$9+0.000000001) -> 0.05499457112
C4: Black or African American | D4: =SUM(Data!AT$3:AT$100000) -> 4942 | E4: =D4/($D$9+0.000000001) -> 0.03832790445
C5: American Indian or Alaskan Native | D5: =SUM(Data!AU$3:AU$100000) -> 1448 | E5: 0.01123002947
C6: Native Hawaiian or other Pacific Islander | D6: =SUM(Data!AV$3:AV$100000) -> 224 | E6: 0.001737242128
C7: White | D7: =SUM(Data!AW$3:AW$100000) -> 103824 | E7: 0.8052117264
C8: Other | D8: =SUM(Data!AX$3:AX$100000) -> 11411 | E8: 0.08849852645
C9: Total Population | D9: =SUM(D3:D8) -> 128940 | E9: 1

Sheet Income Distribution
A1: ="Household Income Distribution for "& Data!L1 -> Household Income Distribution for Example Zip Codes
D2: Number | E2: Percent
C3: 0-25K* | D3: =SUMIFS(Data!$F$3:$F$100000,Data!$R$3:$R$100000,"<=25000")+SUMIFS(Data!$F$3:$F$100000,Data!$R$3:$R$100000,"") -> 0 | E3: =D3/($D$9+0.000000001) -> 0
C4: >25K to 50K | D4: =SUMIFS(Data!$F$3:$F$100000,Data!$R$3:$R$100000,"<=50000",Data!$R$3:$R$100000,">25000") -> 0 | E4: =D4/($D$9+0.000000001) -> 0
C5: 50K to 75K | D5: =SUMIFS(Data!$F$3:$F$100000,Data!$R$3:$R$100000,"<=75000",Data!$R$3:$R$100000,">50000") -> 1 | E5: 0.2499999999
C6: 75K-100K | D6: =SUMIFS(Data!$F$3:$F$100000,Data!$R$3:$R$100000,"<=100000",Data!$R$3:$R$100000,">75000") -> 0 | E6: 0
C7: 100K - 125K | D7: =SUMIFS(Data!$F$3:$F$100000,Data!$R$3:$R$100000,"<=125000",Data!$R$3:$R$100000,">100000") -> 1 | E7: 0.2499999999
C8: >125K | D8: =SUMIFS(Data!$F$3:$F$100000,Data!$R$3:$R$100000,">125000") -> 2 | E8: 0.4999999999
C9: Total Zip Codes | D9: =SUM(D3:D8) -> 4 | E9: 0.9999999997
C10: Total Unique Zip Codes | D10: =COUNTA(Data!B3:B100000) -> 4
C11: *May include zip codes with no data

Sheet Housing Distribution
A1: ="House Value Distribution for "& Data!L1 -> House Value Distribution for Example Zip Codes
D2: Number | E2: Percent
C3: 0-100K* | D3: =SUMIFS(Data!$F$3:$F$100000,Data!$X$3:$X$100000,"<=100000")+SUMIFS(Data!$F$3:$F$100000,Data!$X$3:$X$100000,"") -> 0 | E3: =D3/($D$9+0.000000001) -> 0
C4: >100K to 150K | D4: =SUMIFS(Data!$F$3:$F$100000,Data!$X$3:$X$100000,"<=150000",Data!$X$3:$X$100000,">100000") -> 0 | E4: =D4/($D$9+0.000000001) -> 0
C5: >150K to 250K | D5: =SUMIFS(Data!$F$3:$F$100000,Data!$X$3:$X$100000,"<=250000",Data!$X$3:$X$100000,">150000") -> 1 | E5: 0.2499999999
C6: >250K-500K | D6: =SUMIFS(Data!$F$3:$F$100000,Data!$X$3:$X$100000,"<=500000",Data!$X$3:$X$100000,">250000") -> 0 | E6: 0
C7: >500K - 750K | D7: =SUMIFS(Data!$F$3:$F$100000,Data!$X$3:$X$100000,"<=750000",Data!$X$3:$X$100000,">500000") -> 0 | E7: 0
C8: >750K | D8: =SUMIFS(Data!$F$3:$F$100000,Data!$X$3:$X$100000,">750000") -> 3 | E8: 0.7499999998
C9: Total Zip Codes | D9: =SUM(D3:D8) -> 4 | E9: 0.9999999997
C10: Total Unique Zip Codes | D10: =COUNTA(Data!B3:B100000) -> 4
C11: *May include zip codes with no data

Sheet Instructions
P4: CDX Technologies Support
D5: CDXZipStream Demographic Report | P5: (973) 895-5542
P6: support@CDXTech.com
C8: Note: This template works with Microsoft Excel 2010 and later for Windows. It is designed to be used for up to 100,000 rows of data.
C9: If you need to analyze more data or require additional customization, please email customsolutions@cdxtech.com or call (877) 239-8321.
C11: This template will produce a summary report of the most popular demographic items available with CDXZipStream Premium database.
C13: If you haven't already done so, please enable macros for this Excel file. Please refer to our website at the following link for
C14: instructions:
C15: Enabling Macros in our CDXZipStream Templates
C17: You will have to close the file prior to following these instructions.
C19: You must also have CDXZipStream with Premium data installed for this template to work.
C20: Download a free trial of CDXZipStream
C22: If you are using our demo you will only be able to retrieve demographic data for the ZIP Codes: 06830, 90210, 78746, and 90272.
C24: Begin by pressing the "Get Started" button above. This will take you to the "Data" worksheet where you can set up your report.
C25: First enter your ZIP Code list in column B. You can use the CDXZipStream ZipList or Radius functions to create lists. Then press
C26: the "GET DATA" button to bring in demographic data.
C28: Press CTRL-Break or ESC (for Windows) on your keyboard to cancel data retrieval.
C30: You can review the report data on the "Demographics", "Population", "Race" and other tabs. A description of each of the
C31: demographic factors can be found on the "Definitions" tab.
C33: The data items that total ZIP Code data such as population will only be accurate if your list of ZIP Codes does not contain duplicates.
C34: After importing data, if the program finds duplicate ZIP Codes you will be given the option to consolidate and weight results. The end
C35: report will be sorted by ZIP Codes with the highest number of occurences first. This is useful in analyzing customer lists.
C37: The report name on the chart worksheets can be changed by updating cell L1 on the "Data" tab to reflect the nature of your ZIP Code list.
C38: Use the File "Save As" option to save the updated template under a new name. This ensures the original template will remain unchanged.
C41: Copyright © 2022 Hughes Financial Services, Inc.
C42: Version 2.01

Sheet Definitions
B1: Definitions
B2: Population - The population of the ZIP Code from the Year 2010 U.S. Census. The total on the "Demographics" page is the total for all ZIP Codes on the "Data" sheet.
B4: Population Estimate - The current estimated household population of the ZIP Code. The total on the "Demographics" page is the total for all ZIP Codes on the "Data" sheet.
B6: Business Annual Payroll - The total annual payroll for this ZIP Code from the U.S. Business Census. The total on the "Demographics" page is the total for all ZIP Codes on the "Data" sheet.
B8: Business First Quarter Payroll - The first quarter payroll for this ZIP Code from the U.S. Business Census. The total on the "Demographics" page is the total for all ZIP Codes on the "Data" sheet.
B10: Median Age - The Median Age in the ZIP Code the from the Year 2010 U.S. Census. The age on the "Demographics"sheet is the weighted average of all non-zero ZIP Codes on the "Data" sheet.
B12: Median Age Female - The Female Median Age in the ZIP Code from the Year 2010 U.S. Census. The age on the "Demographics"sheet is the weighted average of all non-zero ZIP Codes on the "Data" sheet.
B14: Median Age Male - The Male Median Age in the ZIP Code the Year 2010 U.S. Census. The age on the "Demographics"sheet is the weighted average of all all non-zero ZIP Codes on the "Data" sheet.
B16: Persons Per Household - The Persons per Household in the ZIP Code from the Year 2010 U.S. Census. The number on the "Demographics"sheet is the weighted average of all all non-zero ZIP Codes on the "Data" sheet.
B18: IncomePerHousehold - The Income per Household in the ZIP Code from the Year 2010 U.S. Census. The income on the "Demographics"sheet is the weighted average of all all non-zero ZIP Codes on the "Data" sheet.
B20: Number of Businesses - The total number of Business Establishments for this ZIP Code from the U.S. Business Census. The total on the "Demographics" page is the total for all ZIP Codes on the "Data" sheet.
B22: Number of Employees - The total number of employees for this ZIP Code from the U.S. Business Census. The total on the "Demographics" page is the total for all ZIP Codes on the "Data" sheet.
B24: Delivery Business - This field provides the number of active business delivery mailboxes and centralized units for this ZIP Code. The total on the "Demographics" page is the total for all ZIP Codes on the "Data" sheet.
B26: Delivery Residential - This field provides the number of active residential delivery mailboxes and centralized units for this ZIP Code. The total on the "Demographics" page is the total for all ZIP Codes on the "Data" sheet.
B28: Delivery Total - This field provides the total number of active delivery mailboxes and centralized units for this ZIP Code. The total on the "Demographics" page is the total for all ZIP Codes on the "Data" sheet.
B30: Average House Value - The Average House Value in the ZIP Code from the Year 2010 U.S. Census. The value on the "Demographics"sheet is the weighted average of all ZIP Codes on the "Data" sheet.
B32: Growing Counties A - The estimated number of housing units in this county as of July 1, 2010. Source: Population Division, U.S. Census. Bureau.
B34: Growing Counties B - The estimated number of housing units in this county as of. July 1, 2011. Source: Population Division, U.S. Census. Bureau
B36: Growth Increase Number - The change in housing units from 2003 to 2004, expressed as a number according to the US Census.
B38: Growth Increase Percentage - The change in housing units from 2010 to 2011, expressed as a percentage according to the US Census.
B40: Growth Rank - The growth rank for this county according to the US Census.
B42: CBSA Population - The estimated population for the selected CBSA in 2010.
B44: CBSA Division Population - The estimated population for the selected CBSA Division in 2010.
B46: CBSA Division - Core Based Statistical Area Division name
B48: Male Population - The Male population in the ZIP Code from the Year 2010 U.S. Census. The total on the "Demographics" page is the total for all ZIP Codes on the "Data" sheet.
B50: Female Population - The Female population in the ZIP Code from the Year 2010 U.S. Census. The total on the "Demographics" page is the total for all ZIP Codes on the "Data" sheet.
B52: Asian Population - The Asian population in the ZIP Code from the Year 2010 U.S. Census. The total on the "Race" page is the total for all ZIP Codes on the "Data" sheet.
B54: Black Population - The Black population in the ZIP Code from the Year 2010 U.S. Census. The total on the "Race" page is the total for all ZIP Codes on the "Data" sheet.
B56: Indian Population - The American Indian and Alaska Native population in the ZIP Code from the Year 2010 U.S. Census. The total on the "Race" page is the total for all ZIP Codes on the "Data" sheet.
B58: Hawaiian Population - The Hawaiian population in the ZIP Code from the Year 2010 U.S. Census. The total on the "Race" page is the total for all ZIP Codes on the "Data" sheet.
B60: White Population – The white population in the ZIP Code from the Year 2010 U.S. Census. The total on the "Race" page is the total for all ZIP Codes on the "Data" sheet.
B62: Other Population - The non classified population in the ZIP Code from the Year 2010 U.S. Census. The total on the "Race" page is the total for all ZIP Codes on the "Data" sheet.
